bitfinex/quotes_SOLUSD_20260120
["timestamp","ask_amount","ask_price","bid_price","bid_amount"]
[1768889919718,4.29942065,131.46,131.41,10.59428488]
[1768889919915,4.29942065,131.46,131.39,0.13840023]
[1768889920096,4.29942065,131.44,131.38,18.20575063]
[1768889920297,4.29942065,131.43,131.37,26.6413397]
[1768889920497,14.89370553,131.43,131.37,18.20637287]
[1768889920706,4.29942065,131.45,131.38,0.13840023]
[1768889921223,14.89370553,131.45,131.37,26.64230797]
[1768889921421,4.29942065,131.45,131.37,26.64230797]
[1768889921620,14.89370553,131.45,131.37,7.75048822]
[1768889921928,4.29942065,131.41,131.35,10.59428488]
[1768889922114,4.29942065,131.41,131.35,18.20708881]
[1768889922315,4.29942065,131.41,131.35,10.59428488]
[1768889922723,4.29942065,131.41,131.36,10.59428488]
[1768889923132,4.29942065,131.41,131.34,19.17203896]
[1768889923332,4.29942065,131.41,131.35,10.59428488]
[1768889923518,4.29942065,131.41,131.34,19.17203896]
[1768889923716,4.29942065,131.41,131.35,10.59428488]
[1768889923917,4.29942065,131.41,131.34,19.17203896]
[1768889923918,4.07324694,131.4,131.34,19.03363873]
[1768889924113,4.07324694,131.4,131.33,7.61440645]
[1768889924329,4.07324694,131.4,131.35,10.59428488]
[1768889924534,4.07324694,131.4,131.34,10.59428488]
[1768889924731,4.07324694,131.47,131.34,0.13840023]
[1768889924920,14.66753182,131.43,131.34,0.13840023]
[1768889925114,4.07324694,131.42,131.34,0.13840023]
[1768889925343,4.07324694,131.42,131.36,10.59428488]
[1768889925636,14.66753182,131.38,131.32,37.24660102]
[1768889925932,4.07324694,131.38,131.33,10.59428488]
[1768889926244,10.59428488,131.42,131.35,10.59428488]
[1768889926419,4.07324694,131.42,131.36,7.61266747]
[1768889926623,14.66753182,131.42,131.36,18.20695235]
[1768889927024,4.07324694,131.42,131.36,18.20695235]
[1768889927442,4.07324694,131.42,131.36,37.23862104]
[1768889927646,4.07324694,131.42,131.37,10.59428488]
[1768889927851,4.07324694,131.45,131.37,0.13840023]
[1768889928142,98.0137456,131.59,131.37,0.13840023]
[1768889928143,4.07324694,131.47,131.38,0.13840023]
[1768889928440,4.07324694,131.45,131.41,7.60946208]
[1768889929546,4.07324694,131.45,131.39,29.62107118]
[1768889929721,4.07324694,131.45,131.41,7.60976858]
[1768889930320,14.66753182,131.45,131.4,7.6101664]
[1768889930519,14.66753182,131.45,131.38,0.13840023]
[1768889930520,4.07324694,131.43,131.38,7.61128963]
[1768889931135,4.07324694,131.43,131.38,37.23434601]
[1768889931341,4.07324694,131.43,131.39,10.59428488]
[1768889931645,4.07324694,131.45,131.38,26.64006113]
[1768889932646,4.07324694,131.44,131.38,19.0287715]
[1768889933332,4.47698813,131.46,131.38,19.16717173]
[1768889933540,15.07127301,131.45,131.38,19.16717173]
[1768889933736,4.47698813,131.45,131.38,19.16717173]
[1768889933920,4.47698813,131.46,131.39,0.13840023]
[1768889934121,4.47698813,131.45,131.39,0.13840023]
[1768889934827,4.47698813,131.45,131.4,7.61035007]
[1768889935025,4.47698813,131.52,131.41,10.59428488]
[1768889935230,4.47698813,131.5,131.41,10.59428488]
[1768889935432,4.47698813,131.47,131.42,10.59428488]
[1768889935842,4.47698813,131.47,131.4,26.63622526]
[1768889936046,4.47698813,131.47,131.42,10.59428488]
[1768889936337,4.47698813,131.49,131.45,10.59428488]
[1768889936545,10.59428488,131.52,131.41,16.66]
[1768889936546,4.47698813,131.52,131.43,0.13840023]
[1768889936746,4.47698813,131.55,131.5,10.59428488]
[1768889937041,8.22231357,131.6,131.51,10.59428488]
[1768889937042,4.47698813,131.59,131.51,10.59428488]
[1768889937239,4.47698813,131.57,131.49,0.13840023]
[1768889937544,4.47698813,131.57,131.52,10.59428488]
[1768889937940,10.59428488,131.57,131.46,0.13840023]
[1768889938123,10.59428488,131.57,131.52,10.59428488]
[1768889938124,4.47698813,131.57,131.52,10.59428488]
[1768889938323,4.47698813,131.57,131.51,10.59428488]
[1768889938746,4.47698813,131.57,131.51,18.19787965]
[1768889939327,4.47698813,131.57,131.49,7.60457245]
[1768889939526,4.47698813,131.55,131.5,7.60436242]
[1768889940227,4.47698813,131.55,131.5,7.6043805]
[1768889940951,4.47698813,131.55,131.5,6.54534631]
[1768889941152,4.47698813,131.53,131.44,19.01897334]
[1768889941332,4.47698813,131.49,131.41,0.13840023]
[1768889941650,4.47698813,131.49,131.46,7.60681017]
[1768889941847,4.47698813,131.52,131.46,6.54534631]
[1768889942231,4.47698813,131.52,131.45,0.13840023]
[1768889942530,4.47698813,131.52,131.45,6.54534631]
[1768889942724,4.47698813,131.52,131.46,6.54534631]
[1768889943149,4.47698813,131.52,131.47,7.6062555]
[1768889943542,4.47698813,131.51,131.46,7.606822]
[1768889943743,4.47698813,131.49,131.44,14.15301068]
[1768889943953,4.47698813,131.49,131.45,14.15277315]
[1768889944146,4.47698813,131.49,131.43,7.60817091]
[1768889944147,4.40084813,131.49,131.43,7.60817091]
[1768889944444,6.54534631,131.49,131.42,7.60882533]
[1768889944652,6.54534631,131.5,131.41,19.02429468]
[1768889944842,6.54534631,131.5,131.39,16.87454023]
[1768889944843,6.14747813,131.53,131.43,0.21454023]
[1768889945054,4.94012542,131.52,131.46,6.54534631]
[1768889945228,4.94012542,131.52,131.45,7.6074553]
[1768889945229,4.94141794,131.51,131.45,7.6074553]
[1768889945826,11.48676425,131.51,131.45,7.6074553]
[1768889946041,6.54534631,131.52,131.45,14.15280161]
[1768889946238,4.47698813,131.52,131.46,6.54534631]
[1768889946733,4.47698813,131.52,131.47,6.54534631]
[1768889946936,4.47698813,131.54,131.5,6.54534631]
[1768889947234,4.47698813,131.58,131.52,6.54534631]
[1768889947744,24.25629034,131.65,131.49,0.21454023]
[1768889947745,4.47698813,131.66,131.57,6.54534631]
[1768889947944,6.54534631,131.58,131.48,7.6057195]
[1768889948254,4.47698813,131.51,131.47,24.26614391]
[1768889948437,4.47698813,131.6,131.48,16.66]
[1768889948637,8.02231357,131.63,131.5,6.54534631]
[1768889948638,11.02233444,131.57,131.5,6.54534631]
[1768889948943,11.02233444,131.57,131.49,16.66]
[1768889948944,4.47698813,131.57,131.49,16.66]
[1768889949143,11.02233444,131.55,131.5,16.66]
[1768889949348,11.02233444,131.55,131.48,7.60521189]
[1768889949349,4.47698813,131.54,131.51,16.66]
[1768889949739,4.47698813,131.54,131.47,7.60612486]
[1768889949947,11.02233444,131.53,131.48,16.66]
[1768889950337,11.02233444,131.53,131.49,16.66]
[1768889950652,4.47698813,131.52,131.5,16.66]
[1768889950952,4.47698813,131.52,131.46,25.56158828]
[1768889951156,6.54534631,131.54,131.28,23.87815926]
[1768889951157,4.47698813,131.46,131.28,23.87815926]
[1768889951347,4.47698813,131.46,131.23,38.22242925]
[1768889951348,6.54534631,131.34,131.25,0.07537292]
[1768889951533,11.47739935,131.45,131.26,16.66]
[1768889951534,5.34408856,131.4,131.26,16.66]
[1768889951730,6.54534631,131.35,131.26,20.69978067]
[1768889952154,5.34408856,131.42,131.27,4.03978067]
[1768889952330,4.92782847,131.41,131.27,11.65727138]
[1768889952533,6.54534631,131.35,131.28,4.03978067]
[1768889952745,5.34408856,131.42,131.25,23.0859651]
[1768889952935,6.54534631,131.34,131.27,7.61739185]
[1768889953130,7.61057298,131.4,131.27,7.61739185]
[1768889953348,4.47698813,131.35,131.27,7.61739185]
[1768889953548,11.02233444,131.35,131.27,11.65717252]
[1768889954355,4.47698813,131.34,131.28,16.66]
[1768889954656,10.96233445,131.34,131.27,11.65717252]
[1768889954849,10.96233445,131.34,131.29,16.66]
[1768889955048,6.54534631,131.36,131.29,20.75978066]
[1768889955256,12.95280472,131.43,131.29,4.09978066]
[1768889955562,12.95280472,131.43,131.3,16.66]
[1768889955563,4.92271819,131.42,131.3,16.66]
[1768889955752,6.54534631,131.36,131.3,16.66]
[1768889956138,6.54534631,131.36,131.31,16.66]
[1768889956352,6.54534631,131.37,131.31,28.37512979]
[1768889956537,6.54534631,131.38,131.31,28.37512979]
[1768889956737,6.54534631,131.38,131.32,4.09978066]
[1768889956935,4.47698813,131.39,131.32,4.09978066]
[1768889957442,11.02233444,131.39,131.33,16.66]
[1768889957858,4.47698813,131.38,131.29,11.71640954]
[1768889958046,1e-08,131.34,131.3,24.27611309]
[1768889958237,6.54534631,131.35,131.3,24.27611309]
[1768889958754,6.54534631,131.37,131.3,28.37589375]
[1768889959440,6.54534631,131.37,131.31,16.66]
[1768889959844,4.47698813,131.36,131.3,7.61611309]
[1768889960146,4.47698813,131.36,131.32,16.66]
[1768889960687,4.47698813,131.38,131.32,16.66]
[1768889960968,11.02233444,131.41,131.34,6.54534631]
[1768889961150,11.02233444,131.41,131.33,10.64512697]
[1768889961151,4.47698813,131.41,131.33,10.64512697]
[1768889961356,11.02233444,131.41,131.33,10.64512697]
[1768889961554,4.47698813,131.4,131.33,4.09978066]
[1768889961760,11.02233444,131.4,131.34,16.68]
[1768889962081,4.47698813,131.34,131.17,0.1]
[1768889962239,4.47698813,131.34,131.17,0.01090792]
[1768889962240,3.97421192,131.18,131.17,0.01090792]
[1768889962541,4.34401708,131.24,131.17,20.84706528]
[1768889962734,4.47698813,131.3,131.18,4.16706528]
[1768889962939,22.85,131.38,131.19,4.16706528]
[1768889962940,4.47698813,131.26,131.19,4.16706528]
[1768889963138,10.62769682,131.25,131.1,4.48288147]
[1768889963363,10.62769682,131.22,131.16,4.48288147]
[1768889963542,10.62769682,131.24,131.17,7.62320408]
[1768889963738,10.62769682,131.24,131.18,21.14288147]
[1768889963981,9.31258905,131.31,131.18,27.28769682]
[1768889963982,3.96850049,131.31,131.18,27.28769682]
[1768889964149,10.62769682,131.27,131.19,4.48288147]
[1768889964355,10.62769682,131.27,131.2,16.68]
[1768889964669,10.62769682,131.26,131.2,16.68]
[1768889964857,30.61589958,131.34,131.2,7.62184291]
[1768889965056,10.62769682,131.26,131.21,16.68]
[1768889965748,4.1813659,131.27,131.21,21.16288147]
[1768889966143,30.61589958,131.34,131.21,4.48288147]
[1768889966144,4.1813659,131.29,131.21,4.48288147]
[1768889966348,10.62769682,131.31,131.23,4.48288147]
[1768889966648,10.62769682,131.29,131.24,16.68]
[1768889966861,4.1813659,131.3,131.24,16.68]
[1768889967044,10.62769682,131.29,131.24,16.68]
[1768889967243,14.80906272,131.29,131.25,16.68]
[1768889967442,10.62769682,131.27,131.22,4.48288147]
[1768889967666,4.1813659,131.28,131.22,4.48288147]
[1768889967880,4.1813659,131.28,131.23,16.68]
[1768889968080,4.1813659,131.28,131.22,4.48288147]
[1768889968282,10.62769682,131.27,131.21,4.48288147]
[1768889968681,10.62769682,131.27,131.22,16.68]
[1768889968870,10.62769682,131.3,131.23,21.16288147]
[1768889969065,10.62769682,131.3,131.24,16.68]
[1768889969273,10.62769682,131.3,131.23,4.48288147]
[1768889969585,10.62769682,131.3,131.24,16.68]
[1768889969965,10.62769682,131.3,131.23,4.48288147]
[1768889970166,4.1813659,131.31,131.23,4.48288147]
[1768889970488,4.1813659,131.31,131.25,4.48288147]
[1768889970673,4.1813659,131.31,131.21,4.48288147]
[1768889970880,19.03417707,131.35,131.21,7.62094686]
[1768889971075,10.62769682,131.28,131.22,24.30049505]
[1768889971274,10.62769682,131.28,131.23,16.68]
[1768889971496,4.1813659,131.29,131.24,7.61918564]
[1768889971673,4.1813659,131.31,131.24,7.61918564]
[1768889971870,10.62769682,131.3,131.24,7.61918564]
[1768889972089,10.62769682,131.3,131.25,16.68]
[1768889972275,4.1813659,131.31,131.26,7.61846716]
[1768889972474,10.62769682,131.32,131.26,7.61846716]
[1768889972673,14.80906272,131.32,131.26,7.61846716]
[1768889972880,4.1813659,131.32,131.26,7.61846716]
[1768889973073,4.1813659,131.32,131.25,4.48288147]
[1768889973300,4.1813659,131.32,131.26,21.16288147]
[1768889973487,14.80906272,131.34,131.27,4.48288147]
[1768889973800,4.1813659,131.34,131.25,31.14946898]
[1768889973966,10.62769682,131.32,131.28,16.68]
[1768889974167,4.1813659,131.34,131.29,16.68]
[1768889974388,4.1813659,131.34,131.26,4.48288147]
[1768889974389,14.80906272,131.34,131.3,16.68]
[1768889974978,14.79698945,131.34,131.3,16.68]
[1768889975198,14.79698945,131.34,131.31,16.68]
[1768889975407,4.1813659,131.34,131.31,16.68]
[1768889975582,14.79698945,131.34,131.31,16.68]
[1768889975783,10.61562355,131.34,131.31,16.68]
[1768889976700,10.61562355,131.34,131.28,4.48288147]
[1768889976701,10.61562355,131.34,131.32,16.68]
[1768889977008,10.61562355,131.35,131.32,16.68]
[1768889977179,10.61562355,131.35,131.28,4.48288147]
[1768889977381,10.61562355,131.35,131.29,16.68]
[1768889977709,14.79698945,131.36,131.29,31.77850502]
[1768889977904,14.79698945,131.36,131.29,21.16288147]
[1768889978077,4.1813659,131.36,131.29,21.16288147]
[1768889978282,4.1813659,131.36,131.3,4.48288147]
[1768889978506,26.95512905,131.43,131.3,15.09850502]
[1768889978507,4.1813659,131.38,131.3,15.09850502]
[1768889978825,14.79698945,131.38,131.31,12.09811859]
[1768889979209,14.79698945,131.38,131.31,22.71374214]
[1768889979397,14.79698945,131.38,131.32,16.68]
[1768889979714,14.79698945,131.37,131.32,16.68]
[1768889979890,14.79698945,131.35,131.29,4.48288147]
[1768889980109,10.61562355,131.35,131.33,12.56535024]
[1768889980397,4.09815671,131.33,131.27,4.48288147]
[1768889980591,4.09815671,131.33,131.28,16.68]
[1768889981012,4.09815671,131.33,131.29,16.68]
[1768889981192,4.09815671,131.33,131.27,4.48288147]
[1768889981396,10.61562355,131.32,131.28,16.68]
[1768889981787,10.61562355,131.31,131.29,16.68]
[1768889981990,4.09815671,131.33,131.27,4.48288147]
[1768889982199,10.61562355,131.32,131.28,16.68]
[1768889982506,4.09815671,131.35,131.28,21.16288147]
[1768889982689,10.61562355,131.34,131.29,4.48022149]
[1768889983217,10.61562355,131.33,131.29,4.48022149]
[1768889983398,10.61562355,131.33,131.28,16.68]
[1768889983599,10.61562355,131.34,131.28,21.16022149]
[1768889983900,10.61562355,131.33,131.28,21.16022149]
[1768889984803,4.09815671,131.35,131.28,21.16022149]
[1768889985002,6.56856987,131.34,131.28,28.77746984]
[1768889985623,6.56856987,131.4,131.34,4.48022149]
[1768889985920,6.56856987,131.4,131.32,4.48022149]
[1768889985921,6.56856987,131.39,131.32,4.48022149]
[1768889986094,4.09815671,131.4,131.33,16.68]
[1768889986297,6.56856987,131.39,131.34,16.68]
[1768889986719,6.56856987,131.39,131.35,16.68]
[1768889987000,25.58720813,131.45,131.36,16.63860447]
[1768889987001,4.09815671,131.38,131.36,16.63860447]
[1768889987528,6.56856987,131.37,131.36,16.63860447]
[1768889988100,4.09815671,131.38,131.31,12.09540677]
[1768889988420,4.09815671,131.38,131.32,16.68]
[1768889988613,6.56856987,131.37,131.33,16.68]
[1768889988822,4.09815671,131.38,131.33,16.68]
[1768889989120,4.05717514,131.4,131.34,4.48022149]
[1768889989319,6.56856987,131.39,131.34,4.48022149]
[1768889989801,4.05717514,131.4,131.34,4.48022149]
[1768889990003,6.56856987,131.39,131.34,4.48022149]
[1768889990522,4.05717514,131.39,131.33,16.68]
[1768889990819,4.05717514,131.39,131.33,23.24856987]
[1768889991013,4.05717514,131.39,131.34,6.56856987]
[1768889991719,4.05717514,131.39,131.35,16.68]
[1768889991913,4.05717514,131.41,131.36,6.56856987]
[1768889992114,4.05717514,131.45,131.38,6.56856987]
[1768889992307,4.05717514,131.44,131.39,23.24856987]
[1768889993102,4.05717514,131.44,131.39,24.29070186]
[1768889993326,10.62574501,131.44,131.39,16.68]
[1768889993533,4.05717514,131.44,131.39,16.68]
[1768889993714,4.05717514,131.44,131.4,6.56856987]
[1768889993905,4.05717514,131.43,131.35,4.34538351]
[1768889994228,4.05717514,131.43,131.31,38.08076005]
[1768889994229,4.05717514,131.43,131.39,6.56856987]
[1768889994408,4.05717514,131.43,131.36,28.63804648]
[1768889994609,4.05717514,131.43,131.39,6.56856987]
[1768889994814,4.05717514,131.43,131.36,28.63804648]
[1768889995124,4.05717514,131.43,131.38,6.56856987]
[1768889995510,4.05717514,131.43,131.36,11.95804648]
[1768889995715,4.05717514,131.43,131.38,6.56856987]
[1768889995924,10.62574501,131.41,131.34,4.34538351]
[1768889996228,5.34408856,131.48,131.37,4.34538351]
[1768889996424,5.34408856,131.44,131.31,38.08076005]
[1768889996603,5.34408856,131.42,131.32,16.68]
[1768889996803,5.9565132,131.47,131.33,10.91395338]
[1768889996804,4.94125515,131.41,131.33,10.91395338]
[1768889997117,11.50982502,131.4,131.34,4.34538351]
[1768889997319,6.56856987,131.4,131.34,10.91395338]
[1768889997510,6.56856987,131.4,131.34,4.34538351]
[1768889997823,6.56856987,131.4,131.35,10.91395338]
[1768889998025,6.56856987,131.41,131.35,10.91395338]
[1768889998215,4.93995342,131.4,131.35,10.91395338]
[1768889998717,6.56856987,131.36,131.29,4.34538351]
[1768889998920,6.56856987,131.36,131.31,6.56856987]
[1768889999234,6.56856987,131.37,131.31,6.56856987]
[1768889999413,6.56856987,131.36,131.32,16.68]
[1768889999724,6.56856987,131.37,131.32,16.68]
[1768889999929,7.6103072,131.41,131.32,16.68]
[1768890000136,4.93805837,131.4,131.32,6.56856987]
[1768890000306,4.93805837,131.4,131.33,16.68]
[1768890000506,5.9565132,131.46,131.33,16.68]
[1768890000507,4.93805837,131.39,131.35,10.91395338]
[1768890000709,46.05037279,131.49,131.36,6.56856987]
[1768890000710,7.60687661,131.46,131.36,6.56856987]
[1768890000904,4.93896233,131.45,131.39,6.56856987]
[1768890001105,4.93896233,131.44,131.4,23.24856987]
[1768890001305,11.5075322,131.44,131.4,16.68]
[1768890001506,6.56856987,131.44,131.4,16.68]
[1768890001709,3.96694504,131.51,131.43,6.56856987]
[1768890001926,4.94028628,131.5,131.44,6.56856987]
[1768890002110,4.94028628,131.5,131.45,16.68]
[1768890002316,0.2,131.52,131.46,10.91395338]
[1768890002512,6.56856987,131.47,131.39,4.34538351]
[1768890002730,6.56856987,131.45,131.4,16.68]
[1768890003027,26.81193012,131.52,131.41,16.68]
[1768890003232,6.56856987,131.45,131.4,4.34538351]
[1768890003410,7.60537889,131.49,131.37,6.56856987]
[1768890003616,6.56856987,131.43,131.38,16.68]
[1768890003815,6.56856987,131.43,131.38,27.59395338]
[1768890004010,26.61823157,131.49,131.38,27.59395338]
[1768890004231,4.93321547,131.48,131.38,21.02538351]
[1768890004532,4.93321547,131.48,131.39,6.56856987]
[1768890004834,6.56856987,131.43,131.39,4.34538351]
[1768890005035,6.56856987,131.45,131.41,4.34538351]
[1768890005626,7.60457348,131.5,131.41,4.34538351]
[1768890005915,4.93143841,131.49,131.41,4.34538351]
[1768890006116,4.93143841,131.49,131.36,19.03093302]
[1768890006117,6.56856987,131.42,131.34,4.34538351]
[1768890006319,6.56856987,131.37,131.32,4.34538351]
[1768890006632,5.34408856,131.42,131.33,16.68]
[1768890006830,6.56856987,131.37,131.32,4.34538351]
[1768890007028,6.56856987,131.36,131.33,16.68]
[1768890007733,19.11885952,131.42,131.33,16.68]
[1768890007916,4.93234831,131.41,131.33,16.68]
[1768890008119,6.56856987,131.37,131.33,16.68]
[1768890008330,38.14183927,131.42,131.33,16.68]
[1768890008631,6.56856987,131.37,131.33,16.68]
[1768890008816,4.93507139,131.41,131.33,16.68]
[1768890008817,6.56856987,131.36,131.33,16.68]
[1768890009011,6.56856987,131.36,131.29,7.61670166]
[1768890009217,6.56856987,131.32,131.28,4.34538351]
[1768890009427,6.50856988,131.32,131.29,16.68]
[1768890009630,7.6115086,131.38,131.29,16.68]
[1768890009842,4.93590739,131.37,131.26,4.34538351]
[1768890010040,6.56856987,131.27,131.2,29.19395338]
[1768890010218,6.56856987,131.24,131.21,16.68]
[1768890010422,6.56856987,131.25,131.21,16.68]
[1768890010622,6.56856987,131.25,131.2,29.19395338]
[1768890010823,6.56856987,131.26,131.21,16.68]
[1768890011018,6.16541587,131.32,131.22,6.56856987]
[1768890011324,4.93143297,131.33,131.25,6.56856987]
[1768890011533,6.56856987,131.31,131.25,10.91395338]
[1768890011728,6.56856987,131.28,131.26,16.68]
[1768890012140,6.56856987,131.34,131.26,16.68]
[1768890012341,17.66606096,131.34,131.27,16.68]
[1768890012640,6.56856987,131.28,131.2,18.28]
[1768890012854,6.56856987,131.24,131.21,16.68]
[1768890013148,6.56856987,131.24,131.22,16.68]
[1768890013348,6.56856987,131.24,131.2,18.28]
[1768890013349,7.61722109,131.29,131.2,18.28]
[1768890013535,6.56856987,131.24,131.21,16.68]
[1768890013740,30.54923033,131.31,131.21,16.68]
[1768890013741,6.56856987,131.25,131.21,16.68]
[1768890013944,7.61625629,131.3,131.21,16.68]
[1768890014150,6.56856987,131.24,131.22,16.68]
[1768890014332,6.56856987,131.25,131.22,16.68]
[1768890014535,6.56856987,131.25,131.23,16.68]
[1768890014833,6.56856987,131.24,131.23,16.68]
[1768890015035,6.56856987,131.25,131.23,16.68]
[1768890015434,7.61625629,131.3,131.23,16.68]
[1768890015753,4.9244129,131.29,131.23,16.68]
[1768890015941,6.56856987,131.25,131.21,4.34538351]
[1768890016453,6.56856987,131.24,131.21,4.34538351]
[1768890016649,13.780807,131.32,131.22,16.68]
[1768890016650,6.56856987,131.25,131.22,16.68]
[1768890016956,6.56856987,131.25,131.23,16.68]
[1768890017255,6.56856987,131.25,131.21,4.34538351]
[1768890017455,5.34408856,131.33,131.19,0.0085436]
[1768890017456,6.56856987,131.22,131.19,0.0085436]
[1768890017633,4.21138941,131.22,131.2,16.68]
[1768890017838,7.61963513,131.24,131.12,7.62649186]
[1768890017839,11.48748647,131.21,131.12,7.62649186]
[1768890018034,6.56856987,131.19,131.12,7.6260707]
[1768890018246,7.61963513,131.24,131.14,6.56856987]
[1768890018453,4.16927551,131.2,131.15,16.68]
[1768890018653,6.56856987,131.19,131.15,16.68]
[1768890018852,6.56856987,131.19,131.13,6.56856987]
[1768890019066,6.56856987,131.19,131.14,6.56856987]
[1768890019378,6.56856987,131.19,131.15,16.68]
[1768890019550,6.56856987,131.19,131.16,16.68]
[1768890019752,6.56856987,131.18,131.12,4.34538351]
[1768890019951,6.56856987,131.18,131.13,6.56856987]
[1768890020272,4.16927551,131.18,131.12,4.34538351]
[1768890020501,4.16927551,131.18,131.08,8.90828645]
[1768890020659,12.96649429,131.2,131.09,16.63872417]
[1768890020660,6.56856987,131.1,131.09,16.63872417]
[1768890020855,4.04544385,131.15,131.09,16.63872417]
[1768890021059,32.84269964,131.2,131.09,16.63872417]
[1768890021060,4.04544385,131.18,131.09,20.98410768]
[1768890021298,7.62240573,131.2,131.09,20.98410768]
[1768890021299,4.04544385,131.17,131.09,4.34538351]
[1768890021495,4.04544385,131.21,131.1,35.74941266]
[1768890021656,4.04544385,131.26,131.16,6.56856987]
[1768890021861,4.04544385,131.24,131.17,16.68]
[1768890022461,4.04544385,131.29,131.17,16.68]
[1768890022657,4.04544385,131.27,131.2,6.56856987]
[1768890022862,6.56856987,131.26,131.2,6.56856987]
[1768890023287,4.04544385,131.27,131.2,6.56856987]
[1768890023469,4.04544385,131.31,131.23,10.6262554]
[1768890023787,38.06496097,131.36,131.23,10.6262554]
[1768890023788,4.04544385,131.37,131.28,10.6262554]
[1768890024106,6.56856987,131.34,131.29,4.05768553]
[1768890024272,6.56856987,131.32,131.23,4.05768553]
[1768890024585,6.56856987,131.32,131.27,4.05768553]
[1768890024886,4.04544385,131.35,131.28,4.05768553]
[1768890025064,6.56856987,131.32,131.28,16.7]
[1768890025383,4.04544385,131.35,131.28,16.7]
[1768890025776,6.56856987,131.3,131.26,4.05768553]
[1768890025973,4.04544385,131.33,131.26,4.05768553]
[1768890026170,12.12192907,131.41,131.27,4.05768553]
[1768890026171,6.56856987,131.32,131.27,4.05768553]
[1768890026485,6.56856987,131.32,131.27,20.75768553]
[1768890026784,6.56856987,131.31,131.27,20.75768553]
[1768890027089,6.56856987,131.32,131.27,20.75768553]
[1768890027290,6.56856987,131.34,131.28,4.05768553]
[1768890027493,4.04544385,131.37,131.29,4.05768553]
[1768890027705,6.56856987,131.36,131.3,4.05768553]
[1768890028107,4.04544385,131.37,131.3,4.05768553]
[1768890028108,6.56856987,131.35,131.3,4.05768553]
[1768890028406,6.56856987,131.38,131.32,4.05768553]
[1768890028603,6.56856987,131.38,131.33,16.68]
[1768890028800,4.04544385,131.41,131.33,20.73768553]
[1768890029001,4.04544385,131.44,131.34,4.05768553]
[1768890029319,4.04544385,131.44,131.33,16.68]
[1768890029320,4.04544385,131.46,131.37,4.05768553]
[1768890029505,4.04544385,131.46,131.38,4.05768553]
[1768890029691,6.56856987,131.44,131.39,20.73768553]
[1768890030194,4.04544385,131.46,131.39,20.73768553]
[1768890030404,4.04544385,131.46,131.4,4.05768553]
[1768890030600,4.04544385,131.48,131.4,4.05768553]
[1768890030806,6.56856987,131.47,131.42,4.05768553]
[1768890030994,6.56856987,131.46,131.42,4.05768553]
[1768890031508,6.56856987,131.43,131.39,4.05768553]
[1768890031715,4.04544385,131.46,131.4,16.68]
[1768890032013,4.04544385,131.46,131.39,4.05768553]
[1768890032306,4.04544385,131.48,131.4,20.73768553]
[1768890032509,6.56856987,131.44,131.41,16.68]
[1768890033017,4.04544385,131.48,131.41,16.68]
[1768890033498,6.56856987,131.44,131.41,16.68]
[1768890033700,11.65124083,131.48,131.41,16.68]
[1768890033903,4.04544385,131.48,131.4,4.05768553]
[1768890034201,4.04544385,131.48,131.34,19.03331239]
[1768890034202,6.56856987,131.41,131.35,4.05768553]
[1768890034404,4.04544385,131.44,131.36,4.05768553]
[1768890034606,6.56856987,131.4,131.36,4.05768553]
[1768890034911,4.04544385,131.44,131.37,4.05768553]
[1768890035114,6.56856987,131.41,131.38,16.68]
[1768890035314,6.56856987,131.41,131.38,4.05768553]
[1768890035493,4.04544385,131.45,131.39,16.68]
[1768890035689,6.56856987,131.41,131.38,4.05768553]
[1768890035904,6.56856987,131.42,131.39,16.68]
[1768890036194,4.04544385,131.45,131.39,16.68]
[1768890036403,6.56856987,131.42,131.38,4.05768553]
[1768890036703,6.56856987,131.41,131.39,16.68]
[1768890036902,4.04544385,131.45,131.38,4.05768553]
[1768890037116,6.56048269,131.41,131.39,16.68]
[1768890037319,4.04544385,131.45,131.4,16.68]
[1768890037504,4.04544385,131.45,131.41,16.68]
[1768890037906,4.04544385,131.47,131.41,16.68]
[1768890038216,19.2118208,131.5,131.42,4.05768553]
[1768890038217,4.04544385,131.49,131.42,4.05768553]
[1768890038415,6.56048269,131.46,131.42,4.05768553]
[1768890038720,6.56048269,131.47,131.42,4.05768553]
[1768890038922,6.56048269,131.44,131.43,16.68]
[1768890039217,4.35425437,131.47,131.39,4.05768553]
[1768890039426,6.56048269,131.44,131.4,16.68]
[1768890039719,4.35425437,131.47,131.4,4.05768553]
[1768890040017,6.56048269,131.44,131.4,4.05768553]
[1768890040527,6.56048269,131.44,131.41,16.68]
[1768890040896,6.56048269,131.45,131.39,4.05768553]
[1768890041098,6.56048269,131.45,131.4,20.73768553]
[1768890041522,6.56048269,131.45,131.4,4.05768553]
[1768890041721,6.56048269,131.45,131.41,16.68]
[1768890042029,6.56048269,131.45,131.4,4.05768553]
[1768890042218,4.35425437,131.47,131.41,4.05768553]